[Event "FIDE Women GP Cyprus 2025"]
[Site "Nicosia"]
[Date "2025.03.18"]
[Round "4.1"]
[White "Dzagnidze, Nana"]
[Black "Paehtz, Elisabeth"]
[Result "1-0"]
[Annotator "TA"]
[ECO "A09"]
[WhiteElo "2513"]
[BlackElo "2424"]
[PlyCount "55"]
[EventDate "2025.03.10"]
[EventType "tourn"]
[EventCountry "CYP"]
[SourceTitle "playchess.com"]
[Source "ChessBase"]
[SourceQuality "1"]
[TimeControl "40/5400+30:1800+30"]

{[%evp 10,55,24,8,82,27,27,0,54,53,50,0,0,-1,11,0,79,0,0,0,-11,-43,8,-58,0,0,20,18,33,32,30,19,92,88,180,193,216,189,187,165,175,183,176,176,379,367,365,363]} 1. Nf3 {[%emt 0:00:04]} d5 {[%emt 0:00:03]} 2. c4 {[%emt 0:00:08]} d4 {[%emt 0:00:05]} 3. e3 {[%emt 0:00:24]} c5 {[%emt 0:01:08]} 4. b4 {[%emt 0:01:03]} dxe3 {[%emt 0:00:42]} 5. fxe3 {[%emt 0:00:07]} cxb4 {[%emt 0:00:03]} 6. d4 {[%emt 0:00:16]} Nd7 {[%emt 0:01:07] A09: Réti Opening: 1 Nf3 d5 2 c4.} (6... e6 $11) 7. Bd3 {[%emt 0:01:00]} (7. a3 $16) 7... Ngf6 $11 {[%emt 0:01:04][%cal Oe7e5]} 8. O-O {[%emt 0:00:31][%mdl 1024] White has compensation.} Qc7 {[%emt 0:00:56]} (8... e5 $1 $11) 9. Bb2 $146 {[%emt 0:12:14]} (9. a3 e5 10. Nbd2 bxa3 11. Qa4 Qc6 12. Qc2 Be7 13. Ne4 Nxe4 14. Bxe4 Qc7 15. Bxh7 {1-0 Rakotomaharo,F (2448)-Ouellet,M (2290) Purtichju op 9th 2024 (5)}) 9... e6 {[%emt 0:02:15]} 10. Nbd2 {[%emt 0:01:58]} (10. a3 $14) 10... Be7 {[%emt 0:01:33]} 11. Qe2 {[%emt 0:19:25]} a5 {[%emt 0:09:54]} 12. Rac1 {[%emt 0:01:21] White sacrificed a pawn} a4 {[%emt 0:00:23]} (12... O-O $11 {remains equal.}) 13. c5 {[%emt 0:08:32]} (13. e4 $16) 13... Nd5 {[%emt 0:02:10]} 14. Nc4 {[%emt 0:00:09]} (14. e4 Nf4 15. Qe3 Nxd3 16. Qxd3 O-O $17) 14... O-O {[%emt 0:05:56]} 15. g3 {[%emt 0:21:23]} (15. e4 Nf4 16. Qd2 Nxd3 (16... Nxc5 17. Nce5 $16) 17. Qxd3 a3 $17 (17... b6 $2 18. d5 $19)) 15... b5 {[%emt 0:06:04]} (15... a3 $15 16. Ba1 b3 (16... b5 17. Ncd2 $11) 17. axb3 Nb4 (17... b5 18. Ncd2 $11)) 16. cxb6 {[%emt 0:06:26]} ({White should try} 16. Ncd2 $11) 16... N7xb6 {[%emt 0:00:18]} (16... Qd8 $1 $15 17. e4 N5xb6) 17. Nfe5 {[%emt 0:00:02][%cal Oe5f7]} f5 {[%emt 0:10:08]} (17... Bf6 $5) 18. e4 {[%emt 0:10:08]} Nc3 $1 {[%emt 0:00:25]} 19. Bxc3 {[%emt 0:00:04]} bxc3 {[%emt 0:00:02]} 20. Rxc3 {[%emt 0:00:12]} Bb7 {[%emt 0:14:19]} (20... Nxc4 $11 21. Bxc4 Qd6) 21. Qb2 $1 $36 {[%emt 0:02:56][%mdl 2048] White is on the roll. White is more active.} Rac8 {[%emt 0:09:20] [#]} 22. Rb1 $1 $18 {[%emt 0:07:25][%csl Oe5] Strong Square White (e5)} (22. Qxb6 $2 Qxb6 (22... fxe4 $2 23. Rxf8+ Kxf8 24. Qxe6 $18) 23. Nxb6 Rxc3 24. exf5 Rd8 25. Nxa4 Rc7 $19) (22. exf5 a3 23. Qf2 (23. Qxb6 Qxb6 24. Nxb6 Rxc3 $17) 23... Qd8 $17) 22... Bd8 {[%emt 0:08:32][%cal Ob7e4]} 23. Nxb6 {[%emt 0:03:10] Excellent horsemanship.} ({Not} 23. Qxb6 Qxb6 (23... Bxe4 $2 {loses.} 24. Qxe6+ Kh8 25. Nd6 $18) 24. Nxb6 Rxc3 25. Nxa4 Rxd3 26. Nxd3 Bxe4 $15) 23... Qxc3 {[%emt 0:01:27]} 24. Nxc8 {[%emt 0:00:04]} Qxb2 {[%emt 0:00:05]} 25. Rxb2 {[%emt 0:00:08]} Bxc8 {[%emt 0:00:02] [#]} 26. exf5 {[%emt 0:00:11] and Bc4 would now be decisive} Bg5 $2 {[%emt 0:00:26]} (26... Bc7 27. Rb4 a3) 27. Bc4 {[%emt 0:02:24]} Be3+ {[%emt 0:00:34]} 28. Kg2 {[%emt 0:00:02] Weighted Error Value: White=0.17 (very precise) /Black=0.40  Mistake:       	White=4     	Black=7      Inaccurate:     	White=2     	---        OK:         	White=4     	Black=7      Best:        	White=3     	---        Strong:       	White=2     	Black=1} 1-0

[Event "FIDE Women GP Cyprus 2025"]
[Site "Nicosia"]
[Date "2025.03.18"]
[Round "4.2"]
[White "Harika, Dronavalli"]
[Black "Badelka, Olga"]
[Result "1-0"]
[Annotator "TA"]
[ECO "A20"]
[WhiteElo "2483"]
[BlackElo "2429"]
[PlyCount "53"]
[EventDate "2025.03.10"]
[EventType "tourn"]
[EventCountry "CYP"]
[SourceTitle "playchess.com"]
[Source "ChessBase"]
[SourceQuality "1"]
[TimeControl "40/5400+30:1800+30"]

{[%evp 9,53,-28,-38,-35,-34,-36,-5,-27,75,75,72,73,74,68,64,67,86,89,95,104,102,97,88,75,81,34,45,0,58,35,38,49,168,152,208,216,388,208,1077,1130,1128,1135,1095,1117,1079,1042]} 1. c4 {[%emt 0:00:03]} e5 {[%emt 0:00:14]} 2. a3 {[%emt 0:01:09]} d6 {[%emt 0:03:51]} 3. Nc3 {[%emt 0:07:28]} g6 {[%emt 0:01:30]} 4. h4 $146 {[%emt 0:05:15]} (4. d4 Nd7 5. Nf3 Bg7 6. dxe5 dxe5 7. e4 Ngf6 8. b4 O-O 9. Bb2 c6 10. Qc2 {½-½ Ackermann,H (2299)-Markowski,T (2605) Pfalz op 2nd 2009 (2)}) 4... Nf6 {[%emt 0:02:31]} 5. e4 {[%emt 0:03:41]} Nc6 {[%emt 0:01:00]} 6. d3 {[%emt 0:01:48] A20: English Opening: 1...e5.} Bg7 {[%emt 0:05:23]} 7. Nge2 {[%emt 0:04:14]} Be6 {[%emt 0:03:49]} 8. Nd5 {[%emt 0:04:27] The position is equal.} Qd7 {[%emt 0:04:27] [#]} (8... a5 $11) 9. Bh6 $1 $16 {[%emt 0:06:13] White is more active.} O-O {[%emt 0:00:05]} 10. Nxf6+ {[%emt 0:07:23]} Bxf6 {[%emt 0:00:05]} 11. Bxf8 {[%emt 0:00:05]} Rxf8 {[%emt 0:00:02]} 12. Qd2 {[%emt 0:02:46]} Bg7 {[%emt 0:02:25]} 13. h5 {[%emt 0:00:33]} f5 {[%emt 0:00:49]} 14. hxg6 {[%emt 0:01:08]} hxg6 {[%emt 0:03:56]} 15. exf5 {[%emt 0:07:50]} Bxf5 {[%emt 0:00:12]} 16. f3 {[%emt 0:01:28]} a6 {[%emt 0:09:50]} 17. g4 {[%emt 0:08:39]} (17. Qe3 $16) 17... Be6 $14 {[%emt 0:00:04][%cal Od7f7]} 18. Qg5 {[%emt 0:03:02]} e4 {[%emt 0:17:46]} 19. fxe4 {[%emt 0:11:57]} Ne5 {[%emt 0:00:07] and ...Nf3+ should not be overlooked} 20. O-O-O {[%emt 0:01:09]} Bxg4 {[%emt 0:07:09]} (20... Qf7 $14) 21. d4 $18 {[%emt 0:02:23]} Nxc4 {[%emt 0:01:12] [#]} (21... Bf3 $16 {was worth a try.}) 22. Nc3 $1 {[%emt 0:02:47]} (22. Qxg6 Qb5 23. b4 (23. Qxg4 $2 Qxb2#) (23. Qh7+ $2 Kf7 $19) 23... Qc6 24. Qh7+ (24. Qxg4 $2 {loses.} Ne3+ 25. Kd2 Nxg4 $19) 24... Kf7 $17) 22... b5 {[%emt 0:28:29]} (22... Nb6) 23. Qxg6 {[%emt 0:02:56]} (23. Bxc4+ $142 bxc4 24. Rdg1) 23... Rf2 $2 {[%emt 0:05:16]} (23... Bxd1 24. Bh3 (24. Kxd1 Rxf1+ 25. Rxf1 Ne3+ 26. Ke1 Nxf1 $11) (24. Nxd1 Rf6 $16) 24... Rf6 25. Qxf6 (25. Bxd7 Rxg6 26. Rxd1 Ne3 $17) 25... Bxf6 26. Bxd7 Bb3 27. Be6+ Kg7) 24. Bxc4+ {[%emt 0:03:17] White is clearly winning.} bxc4 {[%emt 0:00:02]} 25. Rdg1 {[%emt 0:02:32]} Bf3 {[%emt 0:00:04]} 26. Qh7+ {[%emt 0:03:11]} Kf8 {[%emt 0:00:04]} 27. Qh8+ {[%emt 0:02:59] Weighted Error Value: White=0.19 (very precise) /Black=0.72  Mistake:       	White=2     	Black=6      Inaccurate:     	White=1     	Black=1      OK:         	White=4     	Black=3      Best:        	White=4     	Black=2      Strong:       	White=1     	---        Brilliant:      	White=1     	---} 1-0

[Event "FIDE Women GP Cyprus 2025"]
[Site "Nicosia"]
[Date "2025.03.18"]
[Round "4.3"]
[White "Muzychuk, Mariya"]
[Black "Zhu, Jiner"]
[Result "1/2-1/2"]
[Annotator "TA"]
[ECO "A18"]
[WhiteElo "2490"]
[BlackElo "2514"]
[PlyCount "109"]
[EventDate "2025.03.10"]
[EventType "tourn"]
[EventCountry "CYP"]
[SourceTitle "playchess.com"]
[Source "ChessBase"]
[SourceQuality "1"]
[TimeControl "40/5400+30:1800+30"]

{[%evp 13,109,15,18,13,6,11,13,8,18,10,18,8,12,0,5,0,0,0,18,24,31,23,25,24,24,30,28,22,50,43,43,40,58,16,54,47,52,63,66,66,71,68,85,64,49,66,59,44,55,0,12,0,13,12,17,17,16,18,16,0,0,7,16,10,29,0,0,0,48,0,0,0,0,0,0,-8,-8,-14,0,0,0,0,0,0,0,-8,-8,-8,-8,-8,0,0,8,0,0,0,0,0]} 1. c4 {[%emt 0:00:04]} Nf6 {[%emt 0:00:09]} 2. Nc3 {[%emt 0:00:10]} e6 {[%emt 0:00:14]} 3. e4 {[%emt 0:00:13]} d5 {[%emt 0:01:13]} 4. e5 {[%emt 0:00:08]} d4 {[%emt 0:00:07]} 5. exf6 {[%emt 0:00:04]} dxc3 {[%emt 0:00:05]} 6. bxc3 {[%emt 0:00:07]} Qxf6 {[%emt 0:00:05]} 7. d4 {[%emt 0:00:11] 7.Nf3 is the modern continuation.} b6 {[%emt 0:00:59]} 8. Be2 {[%emt 0:00:12] A18: English Opening: Flohr-Mikenas System (1 c4 Nf6 2 Nc3 e6 3 e4).} Bb7 {[%emt 0:00:14]} 9. Bf3 {[%emt 0:00:06]} Bxf3 {[%emt 0:00:18]} 10. Nxf3 {[%emt 0:00:06]} Bd6 {[%emt 0:02:05]} 11. Qa4+ {[%emt 0:00:13]} c6 $1 {[%emt 0:00:14]} 12. O-O {[%emt 0:00:06]} O-O {[%emt 0:00:14]} 13. Rb1 {[%emt 0:00:13]} Qf5 {[%emt 0:01:15]} 14. Bg5 {[%emt 0:05:08]} Qd3 {[%emt 0:01:20]} 15. Be3 $146 {[%emt 0:04:37]} (15. Rfc1) 15... Rc8 {[%emt 0:14:26]} 16. c5 {[%emt 0:07:04]} b5 {[%emt 0:00:27]} 17. Qb3 $36 {[%emt 0:02:04][%mdl 2048] White fights for an advantage.} Bc7 {[%emt 0:00:12]} 18. Rfd1 {[%emt 0:00:43]} Qf5 {[%emt 0:00:30]} 19. c4 {[%emt 0:06:03]} bxc4 {[%emt 0:02:29]} 20. Qxc4 {[%emt 0:00:47]} Nd7 {[%emt 0:00:10]} 21. Qa6 {[%emt 0:02:34]} Qd5 {[%emt 0:01:58]} 22. h3 {[%emt 0:04:02]} h6 {[%emt 0:02:37]} 23. Ne1 {[%emt 0:21:03]} Nf6 {[%emt 0:18:41]} 24. Nd3 {[%emt 0:02:05]} Qe4 $1 {[%emt 0:01:56]} 25. Nb4 {[%emt 0:05:36]} Nd5 {[%emt 0:05:58]} 26. Nxd5 {[%emt 0:00:59]} (26. Nxc6 Nxe3 27. fxe3 Qxe3+ 28. Kh1 Qf4 $17) (26. Qxc6 $2 Bh2+ 27. Kxh2 Rxc6 28. Nxc6 Nc3 $19 (28... Nxe3 $2 29. fxe3 Qxc6 30. Kh1 $19)) 26... Qxd5 {[%emt 0:00:14]} 27. Rb7 {[%emt 0:01:21]} f5 {[%emt 0:02:20][%csl Oa7,Oc6,Oe6] Black has weak pawns} 28. Rxa7 {[%emt 0:04:27] White is more active.} Rxa7 {[%emt 0:09:17]} 29. Qxa7 {[%emt 0:00:35]} Bb8 {[%emt 0:00:43]} 30. Qa6 {[%emt 0:12:16]} Rd8 {[%emt 0:00:17][%cal Od5c5]} 31. f3 {[%emt 0:05:52]} Bg3 {[%emt 0:00:59]} 32. Qa4 {[%emt 0:04:37]} e5 {[%emt 0:11:07]} 33. Kf1 {[%emt 0:01:01]} f4 {[%emt 0:02:48]} 34. Bg1 {[%emt 0:01:19]} e4 {[%emt 0:09:04]} 35. fxe4 {[%emt 0:01:36]} Qxe4 {[%emt 0:00:03] [#]} 36. Qb3+ {[%emt 0:00:23]} Kh8 {[%emt 0:00:08] ( -> ...Re8)} 37. Qf3 {[%emt 0:02:15]} Qc2 {[%emt 0:00:58]} 38. Qe2 {[%emt 0:01:16] Wards off Re8} Qa4 {[%emt 0:01:41]} 39. Rb1 {[%emt 0:05:19]} Qa3 {[%emt 0:03:21]} 40. Rd1 {[%emt 0:02:45]} Ra8 {[%emt 0:07:56]} (40... Qa4 $11 {was preferable.}) 41. d5 {[%emt 0:06:05]} (41. Bf2 $14) 41... cxd5 $11 {[%emt 0:01:37] The position is equal.} 42. Rxd5 {[%emt 0:01:35]} Qa4 {[%emt 0:09:08][%cal Oa8e8] [#] White must now prevent ...Re8!.} 43. Rd4 {[%emt 0:02:47]} Rb8 {[%emt 0:01:46]} 44. Rd1 {[%emt 0:10:53] Dodges Rb1} (44. Rxa4 $2 {is the wrong capture.} Rb1+ $19) 44... Re8 {[%emt 0:00:50]} 45. Qd3 {[%emt 0:00:17]} Qxa2 {[%emt 0:02:44]} (45... Qa5 $5 46. Bf2 $8 Bxf2 (46... Qxa2 47. Qd2 $11) 47. Kxf2 Qxc5+ 48. Kf1 Re3 $11) 46. Bd4 $1 {[%emt 0:02:00]} Kg8 {[%emt 0:05:41][%cal Of4f3]} 47. Kg1 {[%emt 0:04:33]} Qd5 {[%emt 0:01:23]} 48. Qf3 {[%emt 0:02:09]} Re4 {[%emt 0:04:08]} 49. Bxg7 {[%emt 0:03:09]} Qxc5+ {[%emt 0:01:32]} 50. Kh1 {[%emt 0:00:13]} Qe3 {[%emt 0:01:53]} 51. Bxh6 {[%emt 0:00:42]} Qxf3 {[%emt 0:00:21]} 52. gxf3 {[%emt 0:00:04]} Re2 {[%emt 0:00:14]} 53. Rd4 {[%emt 0:01:38]} Re1+ {[%emt 0:00:13]} 54. Kg2 {[%emt 0:00:04]} Re2+ {[%emt 0:00:02]} 55. Kh1 {[%emt 0:00:03] Weighted Error Value: White=0.06 (flawless) /Black=0.05 (flawless)   Mistake:       	White=1     	Black=1      Inaccurate:     	White=3     	Black=2      OK:         	White=21    	Black=22     Best:        	White=2     	Black=3      Strong:       	White=1     	Black=2} 1/2-1/2

[Event "FIDE Women GP Cyprus 2025"]
[Site "Nicosia"]
[Date "2025.03.18"]
[Round "4.4"]
[White "Goryachkina, Aleksandra"]
[Black "Tsolakidou, Stavroula"]
[Result "1-0"]
[Annotator "TA"]
[ECO "B31"]
[WhiteElo "2548"]
[BlackElo "2445"]
[PlyCount "101"]
[EventDate "2025.03.10"]
[EventType "tourn"]
[EventCountry "CYP"]
[SourceTitle "playchess.com"]
[Source "ChessBase"]
[SourceQuality "1"]
[TimeControl "40/5400+30:1800+30"]

{[%evp 9,101,5,33,20,16,16,24,22,24,25,24,18,22,21,28,8,5,5,5,5,5,5,6,5,6,6,6,6,123,99,94,88,100,99,91,79,99,106,102,101,98,108,85,93,85,50,41,28,65,31,30,19,119,116,118,64,64,60,38,55,66,85,87,81,58,35,266,254,257,255,324,324,609,587,1064,1053,1415,1787,855,733,1315,1144,1135,1210,1258,1315,1315,1206,995,995,1035,1035,1022,1004]} 1. e4 {[%emt 0:00:07]} c5 {[%emt 0:00:09]} 2. Nf3 {[%emt 0:00:11]} Nc6 {[%emt 0:00:14]} 3. Bb5 {[%emt 0:00:20]} g6 {[%emt 0:00:13]} 4. O-O {[%emt 0:00:37]} Bg7 {[%emt 0:00:11]} 5. d3 {[%emt 0:00:45]} e5 {[%emt 0:03:17]} 6. a3 {[%emt 0:00:48] B31: Sicilian: 2...Nc6 3 Bb5 g6.} Nge7 {[%emt 0:05:15]} 7. b4 {[%emt 0:00:39]} d6 {[%emt 0:01:11]} 8. bxc5 {[%emt 0:03:34] White has an edge.} dxc5 {[%emt 0:00:07]} 9. Bg5 {[%emt 0:00:44]} Bd7 {[%emt 0:10:19]} 10. a4 {[%emt 0:01:44][%cal Oa4a5]} O-O {[%emt 0:10:05][%cal Bh8f8,Bf8f7,Bf7e7][%mdl 32]} 11. Bxc6 {[%emt 0:00:54]} Bxc6 {[%emt 0:00:05]} 12. Bxe7 $146 {[%emt 0:01:34]} (12. c4 h6 13. Be3 b6 14. Nc3 Bd7 15. a5 Bg4 16. axb6 axb6 17. Rxa8 Qxa8 18. Qb3 Bxf3 19. gxf3 {1-0 Ma,Q (2648)-Zhu,J (2507) CHN-chT DivA 2023 (5.4)}) 12... Qxe7 {[%emt 0:00:05]} 13. c4 {[%emt 0:00:18]} f5 {[%emt 0:09:38]} 14. Nc3 {[%emt 0:00:14]} Bh6 {[%emt 0:02:48]} 15. Re1 {[%emt 0:04:41]} Rf7 {[%emt 0:03:50]} 16. Nd5 {[%emt 0:02:38]} Qd6 {[%emt 0:01:34]} 17. Ra2 {[%emt 0:03:59]} Raf8 {[%emt 0:03:59]} 18. a5 {[%emt 0:03:08]} Bxd5 {[%emt 0:11:11]} (18... Bg7 $11 {keeps the balance.}) 19. exd5 {[%emt 0:08:12][%csl Od5] White has a strong passed pawn} Re7 {[%emt 0:01:21]} 20. Rae2 {[%emt 0:02:11][%cal Re2e5]} Rfe8 {[%emt 0:03:25]} 21. Qb1 {[%emt 0:07:23]} Qc7 {[%emt 0:04:49]} 22. h4 {[%emt 0:08:14]} Kf8 {[%emt 0:06:41]} 23. Qa1 {[%emt 0:03:44][%cal Re2e5]} Bg7 {[%emt 0:06:09][%cal Bh6g7,Bg7f6,Bf6h4][%mdl 32] ...e4 is the strong threat.} 24. Ng5 {[%emt 0:03:14]} Bf6 {[%emt 0:02:53]} 25. Ne6+ {[%emt 0:11:26]} Rxe6 {[%emt 0:00:05]} 26. dxe6 {[%emt 0:00:03]} Rxe6 {[%emt 0:00:06]} 27. Qb2 {[%emt 0:02:01]} Bxh4 {[%emt 0:04:09]} 28. Rb1 {[%emt 0:03:54]} (28. Rxe5 Bf6 29. d4 Bxe5 30. Rxe5 Rxe5 31. dxe5 Qxa5 32. Qxb7 Qa1+ 33. Kh2 Qxe5+ 34. g3 Qe7 $17) 28... Re7 {[%emt 0:00:43][%cal Of8g7]} 29. Qa3 {[%emt 0:01:19]} Qd6 $1 {[%emt 0:02:30]} 30. Rb5 {[%emt 0:02:21]} Rc7 {[%emt 0:02:13]} (30... e4 $11 31. Qxc5 (31. Rxc5 Kg7 $14) 31... Qxd3) 31. Qb2 {[%emt 0:01:24]} Bf6 {[%emt 0:00:36][%cal Oe5e4] [#]} 32. Rxb7 {[%emt 0:01:54]} (32. Qb3 $1 $16) 32... e4 $1 $14 {[%emt 0:00:23]} 33. Rb8+ {[%emt 0:01:12]} Kg7 {[%emt 0:00:26]} 34. Qb1 {[%emt 0:01:27]} exd3 {[%emt 0:03:41]} 35. Rd2 {[%emt 0:00:53][%cal Be2d2,Bd2d3,Bd3b3,Bb3b7,Bb7h7][%mdl 32]} Bd4 {[%emt 0:02:16]} (35... Rd7 $2 36. Rb7 $16) 36. Rxd3 {[%emt 0:03:16]} Qe6 {[%emt 0:00:36]} 37. Rdb3 $36 {[%emt 0:04:10][%mdl 2048] Black is under pressure.} Qxc4 $2 {[%emt 0:00:56] This costs Black the game.} ({Better is} 37... Kf6 $1 $14) 38. R8b7 {[%emt 0:01:04]} Rxb7 {[%emt 0:00:39]} 39. Rxb7+ $18 {[%emt 0:00:02][%mdl 4096] Endgame KQR-KQB} Kf6 {[%emt 0:00:29] [#]} 40. Qe1 {[%emt 0:05:22][%csl Gb7][%cal Re1e7] Prevents Qe2} (40. Rxa7 Qe2 41. Qf1 (41. Rxh7 $2 Qxf2+ 42. Kh1 c4 $19) 41... Bxf2+ 42. Qxf2 Qd1+ 43. Qf1 (43. Kh2 Qh5+ 44. Kg3 Qg4+ 45. Kh2 Qh5+ 46. Kg1 Qd1+ 47. Qf1 Qd4+ 48. Kh1 Qh4+ 49. Kg1 Qd4+ 50. Qf2 Qd1+ $11) 43... Qd4+ 44. Qf2 Qd1+ 45. Qf1 Qd4+ 46. Qf2 Qd1+ $11) 40... Kg5 $2 {[%emt 0:00:40]} (40... Qe6 41. Qxe6+ Kxe6 42. Rxa7 Kd6 43. Rxh7 c4) 41. Rxh7 {[%emt 0:34:52] White is clearly winning.} Qc2 {[%emt 0:07:02]} 42. g3 {[%emt 0:00:00]} (42. Rxa7 Bxf2+ 43. Qxf2 Qd1+ 44. Qf1 Qd4+ 45. Kh2 (45. Qf2 Qd1+ 46. Qf1 Qd4+ 47. Kh1 Qh4+ 48. Kg1 Qd4+ $11) 45... Qh4+ 46. Kg1 Qd4+ 47. Kh2 Qh4+ 48. Kg1 Qd4+ $11) 42... f4 {[%emt 0:05:57][%cal Bf5f4,Bf4f3][%mdl 32]} 43. Qe7+ {[%emt 0:00:00]} ({Not} 43. Rxa7 fxg3 44. Rf7 gxf2+ (44... Bxf2+ 45. Rxf2 gxf2+ 46. Qxf2 $14) 45. Rxf2 Qd3 $14 (45... Bxf2+ 46. Qxf2 Qd1+ 47. Kg2 $14)) 43... Bf6 {[%emt 0:00:18]} 44. Qe6 {[%emt 0:00:00]} ({And not} 44. Qxa7 Qd1+ 45. Kh2 fxg3+ 46. Kxg3 Qg1+ 47. Kh3 (47. Kf3 Qg4+ 48. Ke3 Bd4+ 49. Kd2 Qf4+ 50. Kd1 Qf3+ 51. Kc1 Qc3+ 52. Kd1 Qd3+ 53. Kc1 Qf1+ 54. Kd2 Qxf2+ 55. Kd3 c4+ 56. Kxc4 Bxa7 $19) 47... Qxf2 $11) 44... Qd1+ {[%emt 0:04:41]} 45. Kg2 {[%emt 0:00:00] White threatens gxf4+ and mate.} f3+ {[%emt 0:05:08]} 46. Kh2 {[%emt 0:00:00][%cal Oh7h4]} Qe2 {[%emt 0:02:11]} 47. Qe3+ {[%emt 0:00:00]} Qxe3 {[%emt 0:01:46]} 48. fxe3 {[%emt 0:00:00]} a6 {[%emt 0:02:24]} 49. Ra7 {[%emt 0:00:00]} Bc3 {[%emt 0:01:51]} 50. Rxa6 {[%emt 0:00:00] Strongly threatening Rc6.} Bd2 {[%emt 0:00:14] [#]} 51. Rxg6+ $3 {[%emt 0:00:00][%mdl 512] Weighted Error Value: White=0.05 (flawless) /Black=0.62  Loses game:     	---       	Black=1      Mistake:       	White=1     	Black=3      Inaccurate:     	White=2     	Black=3      OK:         	White=17    	Black=11     Best:        	White=1     	Black=4      Strong:       	---       	Black=2} 1-0